[Event "31st Kavala Open-A 2022"]
[Site "Kavala"]
[Date "2022.08.01"]
[Round "8.1"]
[White "Bharath Subramaniyam H"]
[Black "Karthik Venkataraman"]
[Result "1/2-1/2"]
[ECO "B13"]
[WhiteElo "2479"]
[BlackElo "2483"]
[Annotator "TA"]
[PlyCount "64"]
[EventDate "2022.07.27"]
[EventType "swiss"]
[EventCountry "GRE"]
[SourceTitle "playchess.com"]
[Source "ChessBase"]
[SourceQuality "1"]
[TimeControl "40/5400+30:1800+30"]

{[%evp 9,64,0,0,0,8,0,0,0,0,0,-4,-11,-8,-4,0,0,0,0,9,0,0,-14,0,0,0,-32,-32,-21,-36,-36,-29,-29,0,-26,-26,-31,-32,-52,-43,-43,-47,-55,-45,-88,-69,-81,-78,-80,-82,-84,-36,-89,-93,-93,-46,-48,-54]} 1. e4 {[%emt 0:00:37]} c6 {[%emt 0:06:56]} 2. d4 {[%emt 0:02:43]} d5 {[%emt 0:00:05]} 3. exd5 {[%emt 0:01:08]} cxd5 {[%emt 0:00:05]} 4. Nf3 {[%emt 0:00:09]} Nc6 {[%emt 0:00:03]} 5. Bb5 {[%emt 0:02:58]} Qa5+ {[%emt 0:00:05]} 6. Nc3 {[%emt 0:00:10] [#] And now Ne5 would win. B13: Caro-Kann: Exchange Variation and Panov-Botvinnik Attack.} Bg4 {[%emt 0:00:03]} 7. h3 {[%emt 0:18:03]} Bxf3 {[%emt 0:00:30]} 8. Qxf3 {[%emt 0:00:08] The position is equal.} e6 {[%emt 0:00:04] [#]} 9. Bxc6+ $146 {[%emt 0:02:28]} ({Predecessor:} 9. O-O a6 10. Bxc6+ bxc6 11. Qg3 Nf6 12. Re1 Rc8 13. Bg5 Be7 14. Bd2 O-O 15. Bh6 {½-½ (48) Rapport,R (2707)-Pantsulaia,L (2612) Riadh 2017}) 9... bxc6 {[%emt 0:00:06]} 10. O-O {[%emt 0:00:08]} Ne7 {[%emt 0:13:42][%cal Bg8e7,Be7f5,Bf5d6,Bd6e4][%mdl 32]} 11. Ne2 {[%emt 0:07:51]} Nf5 {[%emt 0:03:39]} 12. c3 {[%emt 0:04:05]} Bd6 {[%emt 0:01:37]} 13. Bf4 {[%emt 0:08:21]} Qc7 {[%emt 0:03:44]} 14. Bxd6 {[%emt 0:08:07]} Nxd6 {[%emt 0:02:32]} 15. Nc1 {[%emt 0:00:27]} Ne4 {[%emt 0:04:15]} 16. Qe3 {[%emt 0:07:03] Prevents Nd2.} c5 {[%emt 0:02:52]} 17. dxc5 {[%emt 0:06:04]} Qxc5 {[%emt 0:00:14]} 18. Qxc5 {[%emt 0:04:30]} Nxc5 {[%emt 0:00:05]} 19. Rd1 {[%emt 0:01:04]} Rb8 {[%emt 0:01:29]} 20. Nb3 {[%emt 0:01:21]} Ne4 {[%emt 0:06:02]} 21. Rac1 {[%emt 0:04:03]} Nd6 {[%emt 0:00:24]} 22. Rc2 {[%emt 0:00:21]} Ke7 {[%emt 0:02:03]} 23. Nd2 {[%emt 0:00:47]} Rhc8 {[%emt 0:02:12]} 24. Rdc1 {[%emt 0:00:18]} a5 {[%emt 0:01:12][%cal Ba7a5,Ba5a4][%mdl 32]} 25. Kf1 {[%emt 0:03:00]} Rc7 {[%emt 0:09:53]} 26. Ke1 {[%emt 0:06:58]} Rbc8 {[%emt 0:02:16]} 27. Kd1 {[%emt 0:03:03]} e5 {[%emt 0:01:45]} 28. Nb3 {[%emt 0:01:24]} a4 {[%emt 0:03:07]} 29. Nd2 {[%emt 0:00:08]} Nc4 {[%emt 0:05:54]} ({Black should play} 29... Ke6 $17) 30. b3 {[%emt 0:04:05]} (30. Nxc4 $15 Rxc4 31. b3) 30... Na3 $17 {[%emt 0:06:19]} 31. Rb2 {[%emt 0:00:02]} Nb5 {[%emt 0:02:39]} (31... Rb8 $17) 32. c4 $15 {[%emt 0:00:23]} Na3 {[%emt 0:06:02] Weighted Error Value: White=0.10 (very precise) /Black=0.08 (flawless)} 1/2-1/2

[Event "31st Kavala Open-A 2022"]
[Site "Kavala"]
[Date "2022.08.01"]
[Round "8.2"]
[White "Yilmazyerli, Mert"]
[Black "Kourkoulos-Arditis, Stamatis"]
[Result "1/2-1/2"]
[ECO "E67"]
[WhiteElo "2520"]
[BlackElo "2535"]
[Annotator "TA"]
[PlyCount "78"]
[EventDate "2022.07.27"]
[EventType "swiss"]
[EventCountry "GRE"]
[SourceTitle "playchess.com"]
[Source "ChessBase"]
[SourceQuality "1"]
[TimeControl "40/5400+30:1800+30"]

{[%evp 17,78,25,53,33,36,34,26,57,48,50,31,41,39,40,46,33,42,35,58,56,65,20,16,14,21,4,23,7,35,21,34,22,195,205,187,180,228,207,208,193,193,158,158,158,199,159,337,57,55,56,72,0,0,0,0,0,0,0,0,0,0,0,0]} 1. Nf3 {[%emt 0:11:45]} Nf6 {[%emt 0:00:05]} 2. g3 {[%emt 0:00:03]} g6 {[%emt 0:00:04]} 3. Bg2 {[%emt 0:00:04]} Bg7 {[%emt 0:00:05]} 4. O-O {[%emt 0:00:04]} O-O {[%emt 0:00:05]} 5. d4 {[%emt 0:00:04]} d6 {[%emt 0:00:04]} 6. c4 {[%emt 0:00:10]} Nbd7 {[%emt 0:00:35]} 7. Qc2 {[%emt 0:01:31]} e5 {[%emt 0:00:12]} 8. Rd1 {[%emt 0:00:21]} Re8 {[%emt 0:00:29]} 9. Nc3 {[%emt 0:00:12] 9.e4 is vanishing.} e4 {[%emt 0:08:51]} 10. Ng5 {[%emt 0:00:38][%cal Rg5e4] E67: King's Indian: Fianchetto: 6...Nbd7.} e3 $1 {[%emt 0:00:13]} 11. fxe3 {[%emt 0:00:05]} Ng4 {[%emt 0:00:15][%csl LRe3,LRg5]} 12. e4 {[%emt 0:00:12] White has an edge.} c5 {[%emt 0:03:20]} ({Not} 12... Qf6 13. Nf3 Qe7 14. Nd5 $16) 13. Nf3 {[%emt 0:00:21]} cxd4 {[%emt 0:02:10]} 14. Nxd4 {[%emt 0:00:04]} a6 {[%emt 0:01:02]} ({Less strong is} 14... Qf6 15. Bf3 Nde5 16. Nd5 $16) 15. h3 {[%emt 0:01:37]} Qb6 {[%emt 0:05:53]} 16. e3 {[%emt 0:03:14] [#]} Ngf6 $146 {[%emt 0:01:51]} ({Predecessor:} 16... Nge5 17. Nd5 Qd8 18. Rf1 Nc5 19. Bd2 Bd7 20. a4 {½-½ (20) Ninov,K (2495)-Dedes,N (2290) Athens 1988}) 17. b3 {[%emt 0:00:45]} Nc5 {[%emt 0:09:03]} 18. Bb2 {[%emt 0:03:38]} Bd7 {[%emt 0:00:24]} 19. Rf1 {[%emt 0:01:38][%cal Ob3b4] [#] Strongly threatening b4!} Bc6 {[%emt 0:05:12]} 20. Nxc6 {[%emt 0:19:55]} bxc6 {[%emt 0:00:20]} 21. Rad1 {[%emt 0:03:24]} Re6 {[%emt 0:16:39]} 22. Ne2 {[%emt 0:13:04] Black should prevent Nf4.} Ncxe4 {[%emt 0:01:22]} 23. Bd4 $36 {[%emt 0:02:48][%mdl 2048] White is more active. This bishop pair is nice.} Qc7 {[%emt 0:00:07]} 24. Qb2 {[%emt 0:02:51] [#] Threatens to win with Bxe4.} Re5 {[%emt 0:19:18]} 25. Bxe5 $18 {[%emt 0:03:21]} dxe5 {[%emt 0:00:05]} 26. Qc2 {[%emt 0:01:02]} Qb6 {[%emt 0:00:58]} (26... Ng5 $142 27. Qd2 Rc8) 27. Kh2 {[%emt 0:09:19]} Qxe3 {[%emt 0:02:57]} 28. Qd3 {[%emt 0:01:34]} Bh6 {[%emt 0:10:24]} 29. Qxe3 {[%emt 0:01:49]} Bxe3 {[%emt 0:00:04]} 30. Rd3 {[%emt 0:00:48]} Bg5 {[%emt 0:03:40]} 31. Kh1 {[%emt 0:10:16]} Ra7 $2 {[%emt 0:02:38]} (31... Re8 $16 {is a better defense.} 32. h4 Bh6 33. Bxe4 Nxe4) 32. Nc3 $2 {[%emt 0:00:58]} (32. h4 $18 Bh6 33. g4) 32... Nxc3 $14 {[%emt 0:01:34]} 33. Rxc3 {[%emt 0:00:04] aiming for h4.} e4 {[%emt 0:00:06]} 34. Rc2 {[%emt 0:05:33]} (34. b4 $16) 34... Nh5 $1 $11 {[%emt 0:00:19] The position is equal.} 35. Kh2 {[%emt 0:00:02]} f5 {[%emt 0:00:07]} 36. g4 {[%emt 0:01:30]} Bf4+ {[%emt 0:00:34]} 37. Kg1 {[%emt 0:00:05]} Be3+ {[%emt 0:00:04]} 38. Kh2 {[%emt 0:00:04]} Bf4+ {[%emt 0:00:21]} 39. Kg1 {[%emt 0:00:05]} Be3+ {[%emt 0:00:36] Black escapes into a draw.  Weighted Error Value: White=0.29 (precise) /Black=0.27 (precise)} 1/2-1/2

[Event "31st Kavala Open-A 2022"]
[Site "Kavala"]
[Date "2022.08.01"]
[Round "8.3"]
[White "Pijpers, Arthur"]
[Black "Schroeder, Jan-Christian"]
[Result "1-0"]
[ECO "C92"]
[WhiteElo "2458"]
[BlackElo "2563"]
[Annotator "TA"]
[PlyCount "65"]
[EventDate "2022.07.27"]
[EventType "swiss"]
[EventCountry "GRE"]
[SourceTitle "playchess.com"]
[Source "ChessBase"]
[SourceQuality "1"]
[TimeControl "40/5400+30:1800+30"]

{[%evp 17,65,31,45,4,19,13,7,14,17,0,132,144,142,137,161,172,168,172,194,184,281,285,316,300,306,305,395,393,393,383,386,360,497,489,743,683,718,711,689,626,1154,1164,1104,1014,1530,1481,1355,1233,1092,1046]} 1. e4 {[%emt 0:00:03]} e5 {[%emt 0:00:05]} 2. Nf3 {[%emt 0:00:05]} Nc6 {[%emt 0:00:05]} 3. Bb5 {[%emt 0:00:04][%cal Bf1b5,Bb5a4,Ba4b3,Bb3a2][%mdl 32]} a6 {[%emt 0:00:33]} 4. Ba4 {[%emt 0:00:04]} Nf6 {[%emt 0:00:05]} 5. O-O {[%emt 0:00:05]} Be7 {[%emt 0:00:10]} 6. Re1 {[%emt 0:00:05]} b5 {[%emt 0:00:04]} 7. Bb3 {[%emt 0:00:04]} d6 {[%emt 0:00:04]} 8. c3 {[%emt 0:00:04]} O-O {[%emt 0:00:05]} 9. h3 {[%emt 0:00:03]} Bb7 {[%emt 0:00:19]} 10. a4 {[%emt 0:00:06] C92: Closed Ruy Lopez: 9...Be6, Karpov and Flohr-Zaitsev Variations.} Re8 {[%emt 0:19:59]} 11. d3 {[%emt 0:00:44]} Na5 {[%emt 0:07:35]} 12. Ba2 {[%emt 0:00:16] The position is equal.} c5 {[%emt 0:00:20]} 13. Na3 {[%emt 0:05:54] [#]} Bc6 $146 {[%emt 0:13:21]} (13... Qd7 $11 {keeps the balance.}) ({Predecessor:} 13... Qd7 14. Be3 Rec8 15. b4 cxb4 16. cxb4 Nc6 17. Bd2 d5 18. axb5 axb5 19. Qb3 Ra6 20. Nxb5 {½-½ (37) Rudyak,I (2412)-Rogos,J (2533) ICCF email 2015}) 14. b4 $16 {[%emt 0:24:31]} Nb7 {[%emt 0:00:00]} 15. axb5 {[%emt 0:00:14] White is more active.} axb5 {[%emt 0:08:31] [#]} 16. Bxf7+ $1 {[%emt 0:02:07][%mdl 512]} Kxf7 {[%emt 0:00:06] [#]} 17. Qb3+ $1 {[%emt 0:00:03]} c4 {[%emt 0:06:21]} 18. dxc4 {[%emt 0:00:05][%cal Bd3c4,Bc4c5,Bc5c6][%mdl 32]} Bxe4 {[%emt 0:07:26]} (18... Kf8 {was necessary.}) 19. Ng5+ $18 {[%emt 0:01:52]} Kg8 {[%emt 0:00:06] White must now prevent ...bxc4.} 20. Nxe4 {[%emt 0:00:50]} Nxe4 {[%emt 0:04:06]} 21. Rxe4 {[%emt 0:03:37]} Bf6 {[%emt 0:01:34]} 22. c5+ {[%emt 0:11:09]} d5 {[%emt 0:00:11]} 23. c6 {[%emt 0:00:03] Against Qd7} Nd6 {[%emt 0:00:21]} 24. Qxd5+ {[%emt 0:00:05]} Kh8 {[%emt 0:00:12]} 25. Re1 {[%emt 0:02:31][%cal Be4e1,Be1d1,Bd1c1,Bc1b1][%mdl 32] White is clearly winning.} e4 {[%emt 0:07:57] [#]} (25... Nf5 $142 26. Qxb5 Qc8) 26. Nxb5 $1 {[%emt 0:09:21]} Nxb5 {[%emt 0:02:28]} 27. Rxa8 {[%emt 0:00:06]} Qxa8 {[%emt 0:00:06]} 28. Qxb5 {[%emt 0:00:03]} Bxc3 {[%emt 0:04:17]} 29. Rd1 {[%emt 0:00:53]} Be5 {[%emt 0:00:29]} 30. Be3 {[%emt 0:08:48]} h6 {[%emt 0:00:38]} 31. Qc5 {[%emt 0:05:54]} Qa4 {[%emt 0:02:10]} 32. Rc1 {[%emt 0:00:44]} Bb2 {[%emt 0:04:04]} 33. Rb1 {[%emt 0:01:20] White took control after the opening.  Weighted Error Value: White=0.03 (flawless) /Black=0.51} 1-0

[Event "31st Kavala Open-A 2022"]
[Site "Kavala"]
[Date "2022.08.01"]
[Round "8.4"]
[White "Beerdsen, Thomas"]
[Black "Can, Isik"]
[Result "1-0"]
[ECO "B12"]
[WhiteElo "2500"]
[BlackElo "2445"]
[Annotator "TA"]
[PlyCount "61"]
[EventDate "2022.07.27"]
[EventType "swiss"]
[EventCountry "GRE"]
[SourceTitle "playchess.com"]
[Source "ChessBase"]
[SourceQuality "1"]
[TimeControl "40/5400+30:1800+30"]

{[%evp 9,61,0,0,0,0,0,13,15,13,0,0,0,0,0,38,17,42,0,0,-36,-46,-7,56,84,71,55,31,33,66,73,352,344,426,427,486,495,473,434,720,702,667,640,1080,1031,1017,997,2735,2596,29987,29987,29978,12836,29992,29993]} 1. e4 {[%emt 0:00:03]} c6 {[%emt 0:01:39]} 2. d4 {[%emt 0:01:18]} d5 {[%emt 0:00:07]} 3. f3 {[%emt 0:00:07]} e6 {[%emt 0:00:07]} 4. Nc3 {[%emt 0:00:07]} Bb4 {[%emt 0:00:21]} 5. Bd2 {[%emt 0:00:10]} Ne7 {[%emt 0:03:07]} 6. a3 {[%emt 0:00:18] B12: Caro-Kann: Advance Variation.} Ba5 {[%emt 0:00:33]} 7. Bd3 {[%emt 0:00:16]} O-O {[%emt 0:19:13]} 8. e5 {[%emt 0:00:32] [#] The position is equal.} Nf5 $146 {[%emt 0:08:47]} ({Predecessor:} 8... Bxc3 9. bxc3 b6 10. f4 Ba6 11. Nf3 Bxd3 12. cxd3 c5 13. O-O Nbc6 14. dxc5 bxc5 {1-0 (45) Shevchenko,D (2154)-Lupolov,B (2001) Pardubice 2019}) 9. f4 {[%emt 0:13:14]} Nxd4 {[%emt 0:08:11]} 10. Qh5 $1 {[%emt 0:01:59][%csl Gd3][%cal Rh5h7]} g6 {[%emt 0:04:57]} 11. Qh6 {[%emt 0:05:20]} f5 {[%emt 0:04:48]} 12. b4 {[%emt 0:05:08][%mdl 1024] White has compensation.} Bc7 {[%emt 0:02:59]} 13. Be3 {[%emt 0:16:02]} Bb6 {[%emt 0:01:04] Strongly threatening ...a5.} 14. Bf2 {[%emt 0:02:22]} a5 {[%emt 0:13:31] aiming for ...axb4.} 15. Na4 $36 {[%emt 0:05:58][%mdl 2048] [#] White is pushing.} axb4 {[%emt 0:04:40]} ({Black should try} 15... Nxc2+ $1 $11 16. Bxc2 Bxf2+ 17. Kxf2 axb4) 16. Nxb6 $14 {[%emt 0:09:15]} Qxb6 {[%emt 0:00:04] [#]} 17. h4 $1 {[%emt 0:04:21]} Rxa3 {[%emt 0:18:05]} 18. Rd1 {[%emt 0:05:28] h5 is the strong threat.} b3 {[%emt 0:01:19]} 19. c3 {[%emt 0:02:36] Black must now prevent h5. The board is on fire.} Nc2+ $2 {[%emt 0:00:10][%mdl 8192] This costs Black the game.} ({Reject} 19... c5 20. h5 Nc2+ 21. Kf1 $11) (19... b2 $16 20. Bxd4 c5) 20. Bxc2 $18 {[%emt 0:00:54]} Qa5 {[%emt 0:00:05]} 21. Bb1 {[%emt 0:00:56] Threatens to win with h5.} Qxc3+ {[%emt 0:01:28]} 22. Kf1 {[%emt 0:00:06][%cal Be1f1,Bf1e2,Be2f3,Bf3g3][%mdl 32]} b6 {[%emt 0:03:16] And now ...Ba6+ would win.} 23. h5 {[%emt 0:04:13]} Ba6+ {[%emt 0:02:35]} (23... Ra7 $142 24. Nf3 g5 25. fxg5 (25. Bxb6 Rg7 $16) 25... Qb4) 24. Ne2 {[%emt 0:00:07]} Bxe2+ {[%emt 0:00:51]} 25. Kxe2 {[%emt 0:00:11]} Ra2+ {[%emt 0:00:30]} 26. Bxa2 {[%emt 0:00:33][%cal Oh5g6]} Qc2+ {[%emt 0:00:18]} 27. Kf3 {[%emt 0:00:15][%cal Oh5g6]} Nd7 {[%emt 0:00:43]} 28. Bb1 {[%emt 0:01:14]} Qc4 {[%emt 0:00:30]} 29. hxg6 {[%emt 0:00:21][%csl Gg6,Gh1][%cal Rh6h7]} Nxe5+ {[%emt 0:00:14]} 30. Kg3 {[%emt 0:00:13][%csl Gg6,Gh1][%cal Rh6h7]} Qc3+ {[%emt 0:00:03] [#]} 31. Rd3 $3 {[%emt 0:00:04][%mdl 512] Weighted Error Value: White=0.07 (flawless) /Black=0.86} 1-0

[Event "31st Kavala Open-A 2022"]
[Site "Kavala"]
[Date "2022.08.01"]
[Round "8.5"]
[White "Kilic, Eray"]
[Black "Vrolijk, Liam"]
[Result "1/2-1/2"]
[ECO "C78"]
[WhiteElo "2422"]
[BlackElo "2464"]
[Annotator "TA"]
[PlyCount "86"]
[EventDate "2022.07.27"]
[EventType "swiss"]
[EventCountry "GRE"]
[SourceTitle "playchess.com"]
[Source "ChessBase"]
[SourceQuality "1"]
[TimeControl "40/5400+30:1800+30"]

{[%evp 17,86,22,43,0,0,0,19,17,17,6,6,6,12,14,14,0,0,0,0,0,9,0,0,0,0,0,0,0,33,0,0,0,23,14,11,7,60,0,0,0,0,0,1,0,8,8,7,3,10,11,11,11,11,11,76,77,43,0,0,0,0,0,0,0,0,0,0,0,0,0,0]} 1. e4 {[%emt 0:00:02]} e5 {[%emt 0:00:08]} 2. Nf3 {[%emt 0:00:04]} Nc6 {[%emt 0:00:06]} 3. Bb5 {[%emt 0:00:04]} a6 {[%emt 0:00:16]} 4. Ba4 {[%emt 0:00:05]} Nf6 {[%emt 0:00:07]} 5. O-O {[%emt 0:00:05]} b5 {[%emt 0:00:16]} 6. Bb3 {[%emt 0:00:05]} Bc5 {[%emt 0:00:07]} 7. c3 {[%emt 0:00:05]} d6 {[%emt 0:00:10]} 8. d4 {[%emt 0:00:04]} Bb6 {[%emt 0:00:07]} 9. a4 {[%emt 0:00:11] 9.Be3 injects fresh life into this line.} Rb8 {[%emt 0:00:18]} 10. a5 {[%emt 0:00:05] C78: Ruy Lopez: Archangelsk and Möller Defences.} Ba7 {[%emt 0:00:07]} ({Resist} 10... Nxa5 11. Rxa5 Bxa5 12. dxe5 $14) (10... Bxa5 $2 11. dxe5 (11. d5 Ne7 $18) 11... dxe5 12. Qxd8+ Kxd8 13. Bd5 (13. Bxf7 Bb6 $16) 13... Nxd5 14. exd5 $18) 11. h3 {[%emt 0:00:17]} Bb7 {[%emt 0:00:20]} 12. Be3 {[%emt 0:09:32]} Nxe4 {[%emt 0:00:15]} 13. Re1 {[%emt 0:05:55]} (13. d5 {with more complications.} Bxe3 14. dxc6 Nxf2 15. Qe2) 13... exd4 {[%emt 0:00:22]} 14. cxd4 {[%emt 0:07:48] d5 is the strong threat.} d5 {[%emt 0:00:08]} 15. Nc3 {[%emt 0:01:16]} Ne7 {[%emt 0:01:23]} 16. Nxe4 {[%emt 0:01:43]} dxe4 {[%emt 0:00:08]} 17. Ng5 {[%emt 0:00:16]} Bd5 {[%emt 0:00:19]} 18. Bxd5 {[%emt 0:00:51]} Qxd5 {[%emt 0:00:40] [#]} 19. Nxe4 $1 {[%emt 0:00:27] Black must now prevent Bg5.} O-O $1 {[%emt 0:00:59] [#]} (19... Qxe4 $2 20. Bg5 Qg6 21. Bxe7 $18) 20. Nc5 $146 {[%emt 0:08:20]} ({Predecessor:} 20. Qf3 f5 21. Nd2 f4 22. Bxf4 Qxd4 23. Qb3+ Qd5 24. Be3 c5 25. Rad1 c4 26. Qc3 Bxe3 27. Qxe3 {½-½ (35) Saric,I (2690)-Lagno,K (2560) Caleta 2019}) 20... Bxc5 {[%emt 0:05:41]} 21. dxc5 {[%emt 0:00:05]} Rbd8 {[%emt 0:03:24]} 22. Qg4 {[%emt 0:04:13]} f5 {[%emt 0:19:40]} 23. Qe2 {[%emt 0:08:02] And now Bg5 would win.} (23. Qg3 $5 {[%cal Re3g5]} Ng6 24. Bf4 $14 (24. Qxc7 $2 f4 $19)) 23... Nc6 {[%emt 0:01:28]} 24. Rad1 {[%emt 0:07:07]} Qf7 {[%emt 0:06:52]} 25. Rxd8 {[%emt 0:15:13]} Rxd8 {[%emt 0:00:24]} 26. Bg5 {[%emt 0:01:13]} Rf8 {[%emt 0:14:46]} (26... Rd5 $11) 27. Qe6 {[%emt 0:09:28]} (27. Qf3 $14 Nd4 28. Qc3) 27... Qxe6 $11 {[%emt 0:01:58]} 28. Rxe6 {[%emt 0:00:02]} Nxa5 {[%emt 0:00:10]} 29. Rxa6 {[%emt 0:01:04][%mdl 4096] Endgame KRB-KRN} Nb3 {[%emt 0:01:14]} 30. Ra7 {[%emt 0:05:49]} h6 {[%emt 0:03:06]} 31. Bf4 {[%emt 0:00:48]} Nxc5 {[%emt 0:01:57]} 32. Bxc7 {[%emt 0:00:09]} Rf7 {[%emt 0:01:10]} 33. Ra8+ {[%emt 0:00:02]} Kh7 {[%emt 0:00:08]} 34. Bd6 {[%emt 0:00:36]} Ne4 {[%emt 0:03:45]} 35. Be5 {[%emt 0:01:13]} f4 {[%emt 0:07:09] [#]} (35... Rd7 $11 {keeps the balance.}) 36. Rb8 $1 $16 {[%emt 0:03:42]} g5 {[%emt 0:02:14]} 37. g4 {[%emt 0:05:06]} Rd7 {[%emt 0:03:44] The position is equal.} 38. h4 {[%emt 0:00:53]} gxh4 {[%emt 0:03:21]} 39. Bxf4 {[%emt 0:02:26]} Rg7 {[%emt 0:01:13]} 40. f3 {[%emt 0:00:00]} Rf7 {[%emt 0:00:00]} 41. fxe4 {[%emt 0:03:51]} Rxf4 {[%emt 0:00:34]} 42. Rxb5 {[%emt 0:00:07]} Rxg4+ {[%emt 0:00:08]} 43. Kh2 {[%emt 0:00:04]} Rxe4 {[%emt 0:00:09] Weighted Error Value: White=0.06 (flawless) /Black=0.09 (flawless)} 1/2-1/2

[Event "31st Kavala Open-A 2022"]
[Site "Kavala"]
[Date "2022.08.01"]
[Round "8.6"]
[White "Celik, Hasan Huseyin"]
[Black "Gopal G.N."]
[Result "0-1"]
[ECO "B66"]
[WhiteElo "2363"]
[BlackElo "2593"]
[Annotator "TA"]
[PlyCount "48"]
[EventDate "2022.07.27"]
[EventType "swiss"]
[EventCountry "GRE"]
[SourceTitle "playchess.com"]
[Source "ChessBase"]
[SourceQuality "1"]
[TimeControl "40/5400+30:1800+30"]

{[%evp 22,48,15,0,14,-10,9,-17,-12,-27,-36,-30,-23,-32,-46,-80,-81,-98,-48,-159,-29,-349,-325,-434,-469,-380,-202,-1092,-971]} 1. e4 {[%emt 0:00:14]} c5 {[%emt 0:00:03]} 2. Nf3 {[%emt 0:00:08]} d6 {[%emt 0:00:04]} 3. d4 {[%emt 0:00:06]} cxd4 {[%emt 0:00:03]} 4. Nxd4 {[%emt 0:00:05]} Nf6 {[%emt 0:00:04]} 5. Nc3 {[%emt 0:00:08]} a6 {[%emt 0:00:04]} 6. Bg5 {[%emt 0:00:08]} e6 {[%emt 0:00:09]} 7. f3 {[%emt 0:00:25]} Be7 {[%emt 0:04:48]} 8. Qd2 {[%emt 0:00:15]} h6 {[%emt 0:19:09]} 9. Be3 {[%emt 0:00:31]} Nc6 {[%emt 0:02:08]} 10. O-O-O {[%emt 0:04:17]} Nxd4 {[%emt 0:02:37]} 11. Qxd4 {[%emt 0:04:32]} b5 {[%emt 0:13:16]} 12. Kb1 {[%emt 0:21:43]} Bb7 {[%emt 0:04:24] B66: Sicilian: Richter-Rauzer: 7...a6 8 0-0-0 h6.} 13. g4 {[%emt 0:02:08]} Rc8 {[%emt 0:03:19] [#]} 14. Be2 $146 {[%emt 0:15:30]} ({Predecessor:} 14. Rg1 d5 15. e5 Nd7 16. f4 Qc7 17. Qd2 Nc5 18. Ne2 Ne4 19. Qc1 b4 20. Nd4 {½-½ (38) Zulfugarli,M (2496)-Babaev,R (2334) Baku 2001}) 14... d5 {[%emt 0:09:01] With the idea ...dxe4. The position is equal.} 15. exd5 {[%emt 0:02:37]} Nxd5 {[%emt 0:00:53]} 16. Nxd5 {[%emt 0:01:09]} (16. Qxg7 $2 Bf6 17. Qxh8+ Bxh8 $19) 16... Bxd5 {[%emt 0:00:10]} 17. Qd2 {[%emt 0:02:17] Against Qa5} ({Don't blunder} 17. Qxg7 $2 Bf6 18. Bb6 (18. Rxd5 $2 exd5 19. Qxh8+ Bxh8 $19) 18... Qe7 19. Qxh8+ Bxh8 $19) 17... Qc7 {[%emt 0:02:37]} 18. h4 {[%emt 0:02:34]} O-O {[%emt 0:02:32]} 19. g5 {[%emt 0:15:58]} h5 {[%emt 0:04:45] Black is more active.} ({Black should play} 19... Rfd8 $17 {[%cal Od5a2] And now ...Bxa2+! would win.} 20. Qc1 h5) 20. g6 {[%emt 0:01:37]} (20. Rhf1 $15) 20... Bf6 $40 {[%emt 0:03:56][%mdl 128] Black has some attack.} ({Better is} 20... fxg6 $17 21. Rdf1 Rcd8) 21. Rdg1 $2 {[%emt 0:01:50][%mdl 8192] This costs White the game.} (21. Rhg1 $11) 21... b4 $19 {[%emt 0:06:06] [#] White must now prevent ...Qe5.} ({And not} 21... Qe5 22. c3 fxg6 23. Bg5 $17) 22. gxf7+ {[%emt 0:04:24]} Rxf7 {[%emt 0:00:15]} 23. Rg6 {[%emt 0:03:39]} Qe5 {[%emt 0:06:53]} (23... Rd7 $142 24. Bd3 Bc4) 24. Qc1 $2 {[%emt 0:01:15] [#]} (24. Rxf6 Qxf6 25. Bg5) 24... Bxa2+ $1 {[%emt 0:08:26][%mdl 512] Weighted Error Value: White=1.18/Black=0.39} 0-1

[Event "31st Kavala Open-A 2022"]
[Site "Kavala"]
[Date "2022.08.01"]
[Round "8.7"]
[White "Gagare, Shardul"]
[Black "Vafiadis, Kleanthis"]
[Result "1-0"]
[ECO "E68"]
[WhiteElo "2514"]
[BlackElo "2286"]
[Annotator "TA"]
[PlyCount "47"]
[EventDate "2022.07.27"]
[EventType "swiss"]
[EventCountry "GRE"]
[SourceTitle "playchess.com"]
[Source "ChessBase"]
[SourceQuality "1"]
[TimeControl "40/5400+30:1800+30"]

{[%evp 21,47,33,39,7,26,4,42,20,59,60,53,0,5,0,195,191,194,184,188,174,195,189,590,589,560,543,564,511]} 1. d4 {[%emt 0:00:10]} Nf6 {[%emt 0:03:34]} 2. c4 {[%emt 0:00:12]} g6 {[%emt 0:01:56]} 3. Nf3 {[%emt 0:00:15]} Bg7 {[%emt 0:00:06]} 4. g3 {[%emt 0:00:06]} O-O {[%emt 0:00:06]} 5. Bg2 {[%emt 0:00:03]} d6 {[%emt 0:00:15]} 6. Nc3 {[%emt 0:00:17]} Nbd7 {[%emt 0:00:27]} 7. O-O {[%emt 0:00:13]} e5 {[%emt 0:00:14]} 8. e4 {[%emt 0:00:17]} exd4 {[%emt 0:01:08]} 9. Nxd4 {[%emt 0:00:07]} Re8 {[%emt 0:00:18]} 10. h3 {[%emt 0:00:14]} a6 {[%emt 0:00:29]} 11. Rb1 {[%emt 0:06:48]} Rb8 {[%emt 0:03:22]} 12. a4 {[%emt 0:13:14] E68: King's Indian: Fianchetto: 6...Nbd7 7 0-0 e5 8 e4.} (12. Bg5 {is interesting.} Nc5 13. Qc2 Ne6 14. Nxe6 Bxe6 15. Nd5) 12... a5 {[%emt 0:00:43]} 13. Re1 {[%emt 0:18:07]} c6 {[%emt 0:01:12] [#]} 14. Nc2 $146 {[%emt 0:06:33] White is slightly better.} ({Predecessor:} 14. Be3 Nc5 15. Qc2 Qe7 16. Rbd1 Nfd7 17. b3 Na6 18. Nde2 Nb4 19. Qb1 Nc5 20. Bd4 {0-1 (42) Harika,D (2294)-Sasikiran,K (2658) Mumbai 2003}) 14... Ne5 {[%emt 0:22:23]} 15. b3 {[%emt 0:11:33][%cal Bb2b3,Bb3c4][%mdl 32]} Nfd7 {[%emt 0:00:00][%cal Oe5c4]} 16. f4 {[%emt 0:01:22]} (16. Re3 $14) 16... Nxc4 $11 {[%emt 0:00:00]} 17. e5 {[%emt 0:04:38]} dxe5 $2 {[%emt 0:05:54]} 18. bxc4 $18 {[%emt 0:00:50]} exf4 {[%emt 0:00:06]} 19. Ne4 {[%emt 0:10:08]} fxg3 {[%emt 0:10:00]} 20. Bg5 $1 {[%emt 0:04:00]} ({Don't take} 20. Nxg3 $6 f5 $16) ({Don't do} 20. Bf4 $6 Ne5 $16) 20... Qc7 {[%emt 0:03:57] [#]} 21. Qd2 $1 {[%emt 0:02:44]} Ne5 $2 {[%emt 0:31:05] [#]} (21... b5) 22. Nf6+ $1 {[%emt 0:00:40] White is clearly winning.} Bxf6 {[%emt 0:00:05]} 23. Bxf6 {[%emt 0:00:04] White wants to mate with Qh6.} Re6 {[%emt 0:00:27]} 24. Qf4 {[%emt 0:01:21][%csl LRe5,LRg3] Weighted Error Value: White=0.14 (very precise) /Black=0.85} 1-0